Cogmind - Beta 16 @@@ ROGUE MODE // 2025.11.20 @ 20:41:03 Player: Mozco Result: Self-destructed Performance ------------- Evolutions (3) 1500 Regions Visited (10) 2000 Robots Destroyed (110) 550 Value Destroyed (3262) 3262 Prototype IDs (244) 4880 Alien Tech Used (0) 0 Bonus (3705) 3705 TOTAL SCORE: 15897 Bonus ------- Follower Combat Kills 105 Aligned with FarCom 300 Met Data Miner 300 Used Data Conduit 3000 Cogmind --------- Core Integrity 126/700 Matter 281/300 Energy 7/325 System Corruption 23% Temperature Cool (71) Movement Walking (120) Location -6/Proximity Caves Parts ------- > --- POWER (1) -------- Antimatter Reactor > --- PROPULSION (4) --- Enhanced Flexi-carbon Leg Enhanced Flexi-carbon Leg Enhanced Flexi-carbon Leg Enhanced Flexi-carbon Leg > --- UTILITY (6) ------ Experimental Cooling System High-capacity Storage Unit Advanced Weapon Cycler Layered Medium Armor Plating Thermal Barrier Improved System Guard > --- WEAPON (2) ------- Neutron Cannon Neutron Cannon > --- INVENTORY (20) --- Antimatter Reactor Experimental Heat Sink Experimental Cooling System Advanced Energy Well (274) Advanced Energy Well (0) Advanced Launcher Guidance Computer Improved Armor Integrity Analyzer Advanced Particle Charger Advanced Transmission Jammer Centrium Heavy Armor Plating Advanced Component Analysis Suite AS-neutralizer No. 17b Peak State ------------ > --- POWER ------------ Reinforced Fission Core > --- PROPULSION ------- Carbon-fiber Leg Tripod Weapons Platform > --- UTILITY ---------- High-capacity Storage Unit Multitargeting Array Experimental Core Analyzer Improved System Guard Makeshift System Restoration Module Advanced Recalibrator > --- WEAPON ----------- Phase Gun Phase Gun 8R-AWN's Boregun 8R-AWN's Boregun > --- INVENTORY -------- Experimental Heat Sink Experimental Cooling System Experimental Cooling System Makeshift Trap Scanner Advanced Launcher Guidance Computer Improved Armor Integrity Analyzer Advanced Weapon Cycler Advanced Transmission Jammer Experimental Propulsion Shielding Centrium Heavy Armor Plating Thermal Barrier Advanced Component Analysis Suite System Restoration Module Trap Reconfigurator AS-neutralizer No. 17b AWS/Thermal YOLO Cannon [Rating: 123] Favorites ----------- Power Reinforced Fission Core Engine Ion Engine Power Core Reinforced Fission Core Reactor Antimatter Reactor Propulsion Light Treads Treads Light Treads Leg Enhanced Flexi-carbon Leg Utility High-capacity Storage Unit Device Advanced Component Analysis Suite Storage High-capacity Storage Unit Processor Improved System Guard Protection Propulsion Shielding Weapon 8R-AWN's Boregun Energy Gun Phase Gun Energy Cannon Particle Cannon Ballistic Gun 8R-AWN's Boregun Launcher Grenade Launcher Impact Weapon Hammer Build | -11 -10 -10 -10 -9 -8 -7 -7 -7 -7 -6 ------- Run | Yrd Mat Min Exi Min Mat Fac Low Low Dat Pro Slots Evolved 6 | . . . . . 4 2 . . . . Power . | . . . . . . . . . . . Propulsion 2 | . . . . . . 2 . . . . Utility 4 | . . . . . 4 . . . . . Weapon . | . . . . . . . . . . . Parts Attached 64 | 6 11 2 10 1 3 16 . 2 7 6 Power 5 | 1 1 . 1 . . . . . 2 . Engine 2 | 1 1 . . . . . . . . . Core 1 | . . . 1 . . . . . . . Reactor 2 | . . . . . . . . . 2 . Propulsion 16 | 2 4 . 2 . . 4 . . 2 2 Treads 10 | 2 4 . 2 . . 2 . . . . Leg 6 | . . . . . . 2 . . 2 2 Wheel . | . . . . . . . . . . . Hover . | . . . . . . . . . . . Flight . | . . . . . . . . . . . Utility 28 | 1 2 1 4 1 2 10 . 2 3 2 Device 16 | . . 1 3 . 1 7 . 1 3 . Storage 3 | 1 1 . 1 . . . . . . . Processor 2 | . . . . . 1 1 . . . . Hackware . | . . . . . . . . . . . Protection 7 | . 1 . . 1 . 2 . 1 . 2 Artifact . | . . . . . . . . . . . Weapon 15 | 2 4 1 3 . 1 2 . . . 2 Energy Gun 5 | 1 1 . 1 . . 2 . . . . Energy Cannon 4 | . 1 . . . 1 . . . . 2 Ballistic Gun 3 | 1 . . 2 . . . . . . . Ballistic Cannon . | . . . . . . . . . . . Launcher 2 | . 1 1 . . . . . . . . Special Weapon . | . . . . . . . . . . . Impact Weapon 1 | . 1 . . . . . . . . . Slashing Weapon . | . . . . . . . . . . . Piercing Weapon . | . . . . . . . . . . . Special Melee Weapon . | . . . . . . . . . . . Unidentified Prototypes 5 | . . 1 1 . . 2 . . 1 . Corrupted Parts 8 | . . . . . . 8 . . . . System Corruption 43 | . . . . . . 43 . . . . Parts Lost 13 | . . 1 1 . . . . 2 4 5 Power 1 | . . . . . . . . . 1 . Propulsion 1 | . . . . . . . . . . 1 Utility 6 | . . . . . . . . 2 3 1 Weapon 5 | . . 1 1 . . . . . . 3 Highest Loss Streak 4 | . . 1 1 . . . . 1 4 2 To Critical Strikes . | . . . . . . . . . . . Average Backups 12 | 1 8 10 12 18 16 16 17 16 15 14 Power . | . . . 1 1 1 . . . . 1 Propulsion 1 | . 1 2 2 1 1 . . . . . Utility 8 | . 3 5 7 12 10 12 15 14 12 11 Weapon 2 | . 2 3 2 3 3 3 2 2 1 1 Tool/Special . | . . . . . . . . . . . Unused Backups 29 | . 1 1 12 . . 5 . . 4 6 Power 5 | . . . 3 . . 1 . . . 1 Propulsion 3 | . 1 . 2 . . . . . . . Utility 16 | . . 1 4 . . 4 . . 2 5 Weapon 5 | . . . 3 . . . . . 2 . Tool/Special . | . . . . . . . . . . . Average Slot Usage (%) 92 | . 94 97 99 85 72 78 80 77 73 97 Engine 7 | . 13 14 8 . . . . . . . Core 4 | . . . 5 14 9 6 6 6 3 . Treads 21 | . 27 28 28 28 18 16 . . . . Leg 3 | . . . . . . 4 13 12 10 27 Device 10 | . . . 12 9 14 13 17 16 20 23 Storage 11 | . 14 14 12 14 9 6 6 6 7 7 Processor 2 | . . . . . 5 9 13 12 7 7 Protection 5 | . 9 13 3 4 9 6 2 3 3 7 Energy Gun 4 | . 4 . . 14 6 8 19 19 5 6 Energy Cannon 5 | . 9 14 6 . . . . . . 3 Ballistic Gun 7 | . 1 . 14 . . 1 . . 12 3 Launcher 5 | . 11 11 6 . . . . . . . Peak Build Rating 123 | 6 9 15 50 46 65 120 123 118 116 114 Average Rating 42 | 4 8 9 30 44 52 87 118 111 101 99 On Entrance 54 | . 6 9 11 46 41 47 118 118 84 116 Avg Prop Armor Cover (%) 6 | . . . . . . 6 5 . . . Naked Turns . | . . . . . . . . . . . Heaviest Build 97 | 11 23 24 74 70 76 97 93 96 94 85 Greatest Support 118 | 40 40 40 40 40 40 105 105 105 118 118 Greatest Overweight (x) 17 | . 3 . 1 1 1 1 1 . 17 . Average Overweight (x) . | . . . . 1 1 . . . . . Largest Inventory Capacity 20 | 8 10 10 20 20 20 20 20 20 20 20 Average Capacity 16 | 7 9 10 17 20 20 20 20 20 20 20 Most Carried 20 | 2 10 10 20 20 20 20 20 20 20 20 Average Carried 13 | 1 8 9 13 19 18 18 19 18 16 15 Final Capacity 20 | 8 10 10 20 20 20 20 20 20 20 20 Final Carried 20 | 2 10 10 20 20 20 20 20 16 20 13 Class Distribution -------------------- 72% | Mutant 17% | Scavenger-Mutant 9% | Scavenger-Gunner Dominant Class ---------------- Mutant | -10/Materials Mutant | -10/Mines Mutant | -10/Exiles Mutant | -9/Mines Scavenger-Mutant | -8/Materials Scavenger-Mutant | -7/Factory Scavenger-Gunner | -7/Lower Caves Scavenger-Gunner | -7/Lower Caves Scavenger-Mutant | -7/Data Miner Scavenger-Mutant | -6/Proximity Caves Resources | -11 -10 -10 -10 -9 -8 -7 -7 -7 -7 -6 ----------- Run | Yrd Mat Min Exi Min Mat Fac Low Low Dat Pro Matter Collected 2632 | 173 520 . 723 29 40 299 94 46 434 274 Remotely . | . . . . . . . . . . . Salvage Created 4104 | . 713 . 553 223 326 472 260 441 434 682 Parts 309 | . 55 . 78 15 29 40 10 26 25 31 Haulers Intercepted 4 | . 2 . . . 2 . . . . . Recyclers Shooed 5 | . 4 . . . 1 . . . . . Parts Field Recycled . | . . . . . . . . . . . Retrieved Matter . | . . . . . . . . . . . Parts Self-Destructed 63 | . . . . . . . 5 25 . 33 Prevented . | . . . . . . . . . . . Parts Restored 2 | . . . . . . 1 1 . . . Broken 2 | . . . . . . 1 1 . . . Kills | -11 -10 -10 -10 -9 -8 -7 -7 -7 -7 -6 ------- Run | Yrd Mat Min Exi Min Mat Fac Low Low Dat Pro Combat Hostiles Destroyed 71 | . 17 1 3 8 1 11 5 11 4 10 Guns 47 | . 1 . . 8 1 11 5 11 3 7 Cannons 5 | . . 1 1 . . . . . . 3 AOE 18 | . 16 . 2 . . . . . . . Classes Destroyed 18 | . 10 1 3 . 1 2 . . . 1 Worker 2 | . 2 . . . . . . . . . Builder 9 | . 3 . . . 5 . . . . 1 Tunneler 1 | . 1 . . . . . . . . . Hauler 4 | . 2 . . . 2 . . . . . Recycler 4 | . 3 . . . 1 . . . . . Mechanic 1 | . 1 . . . . . . . . . Operator 4 | . 2 . . . 1 1 . . . . Turret 1 | . . . 1 . . . . . . . Watcher 6 | . 3 . . . 1 . . . . 2 Swarmer 20 | . 6 . . 4 . 4 . 5 . 1 Grunt 27 | . 11 . . 4 . 2 2 5 . 3 Brawler 1 | . . . . . . . . . . 1 Duelist 2 | . . . . . . 1 . . . 1 Sentry 7 | . . . . . 1 1 . 1 . 4 Demolisher 1 | . . 1 . . . . . . . . Programmer 3 | . . . . . . 3 . . . . Enhanced Grunt 4 | . . . . . . . . . 4 . Zionite 8 | . . . 8 . . . . . . . Assembled 3 | . . . 3 . . . . . . . Butcher 3 | . . . . . . . 3 . . . Best Kill Streak 8 | . 6 1 4 4 8 4 3 4 2 6 Combat Bots Only 5 | . 3 1 3 4 1 4 3 4 2 5 Max Kills in Single Turn 4 | . 4 1 2 1 4 1 1 1 1 2 Gunslinging . | . . . . . . . . . . . Exploded 3 | . 3 . 2 . . . . . . . Melee . | . . . . . . . . . . . Uniques/NPCs Destroyed 4 | . . . 4 . . . . . . . 8R-AWN (-10/Exiles) EX-BIN (-10/Exiles) EX-HEX (-10/Exiles) EX-DEC (-10/Exiles) Combat | -11 -10 -10 -10 -9 -8 -7 -7 -7 -7 -6 -------- Run | Yrd Mat Min Exi Min Mat Fac Low Low Dat Pro Hostile Shots Fired 459 | . 41 . 10 22 . 51 1 25 55 254 Missed 155 | . 12 . 4 6 . 23 . 8 13 89 Hits 304 | . 29 . 6 16 . 28 1 17 42 165 Melee 14 | . . . . . . . . 6 . 8 Projectile 290 | . 29 . 6 16 . 28 1 11 42 157 AOE 3 | . . 3 . . . . . . . . Critical Strikes 6 | . . . . . . 1 . . . 5 Part Disruptions 3 | . . . . . . . . . 3 . Actively Blocked 1 | . . . . . . . . . 1 . Damage Taken 4220 | . 351 106 144 169 . 371 17 128 1383 1551 Core 677 | . 51 29 . 23 . 39 17 8 193 317 Absorbed by Shields 17 | . . . 17 . . . . . . . Redirected to Shielding 203 | . 32 10 . . . 28 . . 133 . Ignored by Resistances 894 | . . . . . . . . . 401 493 Regen/Repaired (Parts) 48 | . 48 . . . . . . . . . Core Remaining (%) 86 | 100 . . . 58 100 . . . . . Volleys Fired 225 | . 73 1 55 . 3 . 1 12 23 57 Largest 4 | . 2 1 2 . 1 . 4 2 3 2 Hottest 236 | . 80 68 68 . 100 . 236 176 148 178 Shots Fired 492 | . 76 1 102 39 8 42 22 44 52 106 Gun 389 | . 14 . 94 39 5 42 22 44 52 77 Cannon 70 | . 30 1 7 . 3 . . . . 29 Launcher 33 | . 32 . 1 . . . . . . . Special . | . . . . . . . . . . . Kinetic 165 | . 2 . 94 . . . 2 . 43 24 Thermal 294 | . 42 1 7 39 8 42 20 44 9 82 Explosive 33 | . 32 . 1 . . . . . . . Electromagnetic . | . . . . . . . . . . . Robot Hit Streak 11 | . 11 3 7 9 5 11 5 8 10 9 Robot Miss Streak 6 | . 3 . 4 2 1 2 1 3 4 6 Penetration Max 1 | . . . 1 . . . . . . 1 Secondary Targets 3 | . . . . . . . . 1 . 2 Max Gunslinging Chain 1 | . . . . . . . . 1 . 1 Autonomous 126 | . . . . 39 5 42 19 21 . . Shots Hit Robots 303 | . 42 1 51 30 6 34 15 28 32 64 Core Hits 180 | . 54 1 30 9 8 17 9 16 12 24 Critical Kills 14 | . . . 7 . 1 . 1 . 3 2 Critical Parts Destroyed 27 | . . . 15 . . . . . 8 4 Critical Strikes 47 | . 1 . 22 . 1 . 1 1 14 7 Burn 2 | . 1 . . . . . . 1 . . Meltdown 1 | . . . . . 1 . . . . . Destroy 44 | . . . 22 . . . 1 . 14 7 Melee Attacks . | . . . . . . . . . . . Impact . | . . . . . . . . . . . Slashing . | . . . . . . . . . . . Piercing . | . . . . . . . . . . . Sneak Attacks . | . . . . . . . . . . . Combat Hostiles . | . . . . . . . . . . . Follow-up Attacks . | . . . . . . . . . . . Damage Inflicted 10072 | . 2157 21 1122 890 910 1003 410 776 625 2158 Guns 6165 | . 128 . 915 890 117 1003 410 776 620 1306 Cannons 1513 | . 434 21 82 . 250 . . . . 726 Explosions 2377 | . 1583 . 125 . 543 . . . . 126 Melee . | . . . . . . . . . . . Ramming 17 | . 12 . . . . . . . 5 . Kinetic 1771 | . 28 . 915 . . . 12 . 480 336 Thermal 6576 | . 534 21 82 890 910 1003 398 776 140 1822 Explosive 1708 | . 1583 . 125 . . . . . . . Electromagnetic . | . . . . . . . . . . . Impact . | . . . . . . . . . . . Slashing . | . . . . . . . . . . . Piercing . | . . . . . . . . . . . Highest Corruption 33 | . . . . . . 33 31 29 23 23 Average Corruption 23 | . . . . . . 14 30 24 23 23 Corruption Purged 9 | . . . . . . 1 2 6 . . Corruption Blocked . | . . . . . . . . . . . Effects 77 | . . . . . . 9 13 17 15 23 Message Errors 15 | . . . . . . 1 3 4 1 6 Matter Fused 19 | . . . . . . 2 5 2 5 5 Heat Flow Errors 9 | . . . . . . . 4 . 5 . Energy Discharges 8 | . . . . . . 2 1 3 . 2 Parts Rejected 2 | . . . . . . . . 1 1 . Data Loss (minor) 11 | . . . . . . 3 . 4 1 3 Data Loss (major) 1 | . . . . . . . . . 1 . Misfires 3 | . . . . . . 1 . 1 . 1 Weapon Failures 9 | . . . . . . . . 2 1 6 Overload Shots . | . . . . . . . . . . . Overflow Damage 104 | . 39 . 8 . 53 . . . . 4 Projectiles 26 | . 22 . . . . . . . . 4 Explosions 78 | . 17 . 8 . 53 . . . . . Melee . | . . . . . . . . . . . Knockbacks . | . . . . . . . . . . . Impact . | . . . . . . . . . . . Kinetic . | . . . . . . . . . . . Secondary . | . . . . . . . . . . . Self-Inflicted Damage . | . . . . . . . . . . . Shots . | . . . . . . . . . . . Rammed 2 | . 2 . . . . . . . . . Targets Rammed 3 | . 2 . . . . . . . 1 . Kicked 1 | . . . . . . . . . 1 . Crushed . | . . . . . . . . . . . Highest Temperature 538 | . 174 28 112 . 72 54 282 538 221 318 Average Temperature 93 | . 39 17 40 . 38 34 124 158 91 115 Received Heat Transfer 921 | . 183 . . 63 . 84 9 39 . 543 Effects 11 | . . . . . . . . 11 . . Shutdowns 2 | . . . . . . . . 2 . . Energy Bleed 1 | . . . . . . . . 1 . . Matter Decay 1 | . . . . . . . . 1 . . Damage (minor) 1 | . . . . . . . . 1 . . Damage (major) 6 | . . . . . . . . 6 . . Siege Activations . | . . . . . . . . . . . Martial Activations . | . . . . . . . . . . . Shielding Activations . | . . . . . . . . . . . Robots Disrupted 2 | . . . . . . . . . . 2 Combat Hostiles 1 | . . . . . . . . . . 1 Robots Corrupted . | . . . . . . . . . . . Combat Hostiles . | . . . . . . . . . . . Parts Fried . | . . . . . . . . . . . Impact Corruptions . | . . . . . . . . . . . Robots Melted 2 | . . . . . 1 . . . 1 . Combat Hostiles 1 | . . . . . . . . . 1 . Parts Melted 9 | . 1 . . 1 . 2 1 1 3 . Heat Transferred 7972 | . 1135 37 92 1110 948 1221 518 1110 296 1505 Parts Sabotaged . | . . . . . . . . . . . Parts Stolen 5 | . . . . . . . . 5 . . Parts Stripped . | . . . . . . . . . . . Power Chain Reactions 1 | . . . . . . . . . . 1 Alert | -11 -10 -10 -10 -9 -8 -7 -7 -7 -7 -6 ------- Run | Yrd Mat Min Exi Min Mat Fac Low Low Dat Pro Maximum Alert Level 1 | . 1 . . . . 1 . . . . Low Security (%) 67 | 100 37 100 . 100 100 94 . . . . Level 1 32 | . 62 . . . . 5 . . . . Level 2 . | . . . . . . . . . . . Level 3 . | . . . . . . . . . . . Level 4 . | . . . . . . . . . . . Level 5 . | . . . . . . . . . . . High Security . | . . . . . . . . . . . Max Security . | . . . . . . . . . . . Peak Influence 385 | . 385 88 . 157 86 218 . . . . Initial 88 | . . 88 . . 18 20 . . . . Average 121 | . 199 28 . 79 24 52 . . . . Influence Increases 2019 | . 705 20 . 217 135 407 40 240 . 255 Destroy 0b10 Robot/C 1280 | . 340 20 . 160 20 280 40 220 . 200 Destroy 0b10 Robot/NC 155 | . 85 . . . 50 5 . . . 15 Destroy Leader 216 | . 90 . . 20 16 60 . 20 . 10 Allied During Kill 6 | . . . . . . 6 . . . . Trap Triggered on 0b10 10 | . . . . . . 10 . . . . Successful Hack 47 | . 27 . . . 6 14 . . . . Disable Machine 135 | . 90 . . 15 15 15 . . . . Destroy Structure 110 | . 73 . . 7 28 2 . . . . Partial Spotted 15 | . . . . . . 15 . . . . Lose Combat Pursuer 45 | . . . . 15 . . . . . 30 Influence Decreases 2019 | . 477 248 . 170 136 259 213 175 86 255 Entered New Map 359 | . . 140 . . 29 26 73 5 86 . Time Decay 1547 | . 459 108 . 170 107 233 140 150 . 180 Lost Part 60 | . . . . . . . . 20 . 40 Lost Ally 35 | . . . . . . . . . . 35 Purge Threat 18 | . 18 . . . . . . . . . Squads Dispatched 8 | . 4 . . . 2 2 . . . . Investigation 3 | . 3 . . . . . . . . . Extermination 2 | . . . . . . 2 . . . . Reinforcement 2 | . 1 . . . 1 . . . . . Assault . | . . . . . . . . . . . Garrison 1 | . . . . . 1 . . . . . Intercept . | . . . . . . . . . . . Searches Triggered . | . . . . . . . . . . . Construction Impeded . | . . . . . . . . . . . Haulers Reinforced . | . . . . . . . . . . . Active Scanning Responses . | . . . . . . . . . . . Cargo Convoy Interrupts . | . . . . . . . . . . . Stealth | -11 -10 -10 -10 -9 -8 -7 -7 -7 -7 -6 --------- Run | Yrd Mat Min Exi Min Mat Fac Low Low Dat Pro Distress Signals 5 | . 2 . . . 1 1 . . . 1 Communications Jammed . | . . . . . . . . . . . Distress Signals . | . . . . . . . . . . . Times Spotted 117 | . 20 1 27 9 4 14 4 13 3 22 Peak Tracking Total 10 | . 4 1 9 3 1 3 3 4 2 10 Tactical Retreats 15 | . . . 12 1 . . . . . 2 Traps | -11 -10 -10 -10 -9 -8 -7 -7 -7 -7 -6 ------- Run | Yrd Mat Min Exi Min Mat Fac Low Low Dat Pro Traps Triggered 5 | . 5 . . . . . . . . . Indirectly . | . . . . . . . . . . . Trap Hack Attempts . | . . . . . . . . . . . Triggered . | . . . . . . . . . . . Disarmed . | . . . . . . . . . . . Reprogrammed . | . . . . . . . . . . . Reused 1 | . . . . . . 1 . . . . Traps Reconfigurated 6 | . . . . . . 6 . . . . Traps Extracted . | . . . . . . . . . . . Installed . | . . . . . . . . . . . Triggered 1 | . . . . . . 1 . . . . Machines | -11 -10 -10 -10 -9 -8 -7 -7 -7 -7 -6 ---------- Run | Yrd Mat Min Exi Min Mat Fac Low Low Dat Pro Machines Disabled 22 | . 6 . 12 1 1 1 . . . 1 Max in Single Turn 1 | . 1 . 1 1 1 1 . . . 1 Garrison Access 1 | . . . . . 1 . . . . . Machines Repaired . | . . . . . . . . . . . Machines Dismantled . | . . . . . . . . . . . Machines Sabotaged . | . . . . . . . . . . . Overloaded Fab Kills . | . . . . . . . . . . . Hacking | -11 -10 -10 -10 -9 -8 -7 -7 -7 -7 -6 --------- Run | Yrd Mat Min Exi Min Mat Fac Low Low Dat Pro Machines Accessed 20 | . 8 1 2 . 3 2 . . 3 1 Terminals 9 | . 5 . . . 2 1 . . . 1 Fabricators . | . . . . . . . . . . . Repair Stations 1 | . 1 . . . . . . . . . Recycling Units 2 | . 2 . . . . . . . . . Scanalyzers . | . . . . . . . . . . . Garrison Access 2 | . . . . . 1 1 . . . . Total Hacks 66 | . 26 1 2 . 8 5 . . 22 2 Successful 47 | . 15 1 2 . 4 2 . . 22 1 Failed 18 | . 10 . . . 4 3 . . . 1 Catastrophic 1 | . . . . . 1 . . . . . Database Lockouts 1 | . 1 . . . . . . . . . Manual 17 | . 9 . 1 . 5 2 . . . . Terminals 26 | . 14 . . . 7 3 . . . 2 Fabricators . | . . . . . . . . . . . Repair Stations 5 | . 5 . . . . . . . . . Recycling Units 7 | . 7 . . . . . . . . . Scanalyzers . | . . . . . . . . . . . Garrison Access 3 | . . . . . 1 2 . . . . Terminal Hacks 33 | . 4 1 2 . 2 1 . . 22 1 Record 3 | . . . 1 . . . . . 2 . Part Schematic 11 | . . . . . . . . . 11 . Robot Schematic 6 | . . . . . . . . . 6 . Robot Analysis 3 | . 2 . . . 1 . . . . . Prototype ID Bank 3 | . . . . . . . . . 3 . Open Door 2 | . . 1 . . . . . . . 1 Terminal Index 1 | . . . . . . 1 . . . . Recycling Unit Index 1 | . 1 . . . . . . . . . Unreport Threat 1 | . 1 . . . . . . . . . Locate Traps 1 | . . . . . 1 . . . . . Proto ID Catalog 1 | . . . 1 . . . . . . . Fabricator Hacks . | . . . . . . . . . . . Repair Station Hacks 4 | . 4 . . . . . . . . . Scan Component 2 | . 2 . . . . . . . . . Repair 2 | . 2 . . . . . . . . . Recycling Unit Hacks 4 | . 4 . . . . . . . . . Process 1 | . 1 . . . . . . . . . Report Inventory 2 | . 2 . . . . . . . . . Retrieve Matter 1 | . 1 . . . . . . . . . Scanalyzer . | . . . . . . . . . . . Garrison Access Hacks 1 | . . . . . 1 . . . . . Seal Access 1 | . . . . . 1 . . . . . Unauthorized Hacks 5 | . 3 . . . 1 1 . . . . Terminals 5 | . 3 . . . 1 1 . . . . Botnet 5 | . 3 . . . 1 1 . . . . Fabricators . | . . . . . . . . . . . Repair Stations . | . . . . . . . . . . . Recycling Units . | . . . . . . . . . . . Scanalyzers . | . . . . . . . . . . . Garrison Access . | . . . . . . . . . . . Data Cores Recovered 3 | . 1 . . . 1 1 . . . . Used . | . . . . . . . . . . . Hacking Detections 10 | . 6 . . . 2 2 . . . . Full Trace Events 1 | . 1 . . . . . . . . . Feedback Events . | . . . . . . . . . . . Feedback Blocked . | . . . . . . . . . . . Robot Schematics Acquired 6 | . . . . . . . . . 6 . Robots Built . | . . . . . . . . . . . Authchips . | . . . . . . . . . . . Time . | . . . . . . . . . . . Total Robot Build Rating . | . . . . . . . . . . . Part Schematics Acquired 11 | . . . . . . . . . 11 . Parts Built . | . . . . . . . . . . . Authchips . | . . . . . . . . . . . Time . | . . . . . . . . . . . Total Part Build Rating . | . . . . . . . . . . . Part Studies Acquired . | . . . . . . . . . . . Parts Repaired 2 | . 2 . . . . . . . . . Time 52 | . 52 . . . . . . . . . Parts Recycled . | . . . . . . . . . . . Recycled Matter 169 | . 169 . . . . . . . . . Retrieved Matter 169 | . 169 . . . . . . . . . Retrieved Components . | . . . . . . . . . . . Parts Scanalyzed . | . . . . . . . . . . . Part Schematics Acquired . | . . . . . . . . . . . Parts Damaged . | . . . . . . . . . . . Bothacking | -11 -10 -10 -10 -9 -8 -7 -7 -7 -7 -6 ------------ Run | Yrd Mat Min Exi Min Mat Fac Low Low Dat Pro Used RIF Installer . | . . . . . . . . . . . Robots Hacked . | . . . . . . . . . . . Non-combat . | . . . . . . . . . . . Combat . | . . . . . . . . . . . Robot Hacks Applied . | . . . . . . . . . . . Relay Couplers Released . | . . . . . . . . . . . Fabnet Peak Effective % . | . . . . . . . . . . . Robots Rewired 5 | . . . . . . . . . . 5 Allies Hacked . | . . . . . . . . . . . Hacks Repelled . | . . . . . . . . . . . Allies | -11 -10 -10 -10 -9 -8 -7 -7 -7 -7 -6 -------- Run | Yrd Mat Min Exi Min Mat Fac Low Low Dat Pro Total Allies 5 | . . . . . . . . . . 5 Largest Group 5 | . . . . . . . . . . 5 Highest-Rated Group 70 | . . . . . . . . . . 70 Highest-Rated Ally 14 | . . . . . . . . . . 14 Total Orders 5 | . . . 5 . . . . . . . ROAM 4 | . . . 4 . . . . . . . RETURN 1 | . . . 1 . . . . . . . Ally Attacks 137 | . . . 129 . . 5 . . . 3 Total Damage 1090 | . . . 810 . . 280 . . . . Kills 4 | . . . 1 . . 3 . . . . Allies Corrupted . | . . . . . . . . . . . Allies Melted . | . . . . . . . . . . . Turrets Deployed 1 | . . . . . . 1 . . . . Intel | -11 -10 -10 -10 -9 -8 -7 -7 -7 -7 -6 ------- Run | Yrd Mat Min Exi Min Mat Fac Low Low Dat Pro Active Infowar (turns) 1750 | . . . 50 246 316 588 161 301 88 . Traps 1164 | . . . . . 201 413 161 301 88 . Jamming 1082 | . . . 50 246 316 470 . . . . Robot Analysis Total 154 | . 2 . . . 1 . . . 151 . Derelict Logs Recovered 1 | . . . . . . . 1 . . . Drone Launches 15 | . . . 15 . . . . . . . Drone Recoveries 12 | . . . 12 . . . . . . . Exploration | -11 -10 -10 -10 -9 -8 -7 -7 -7 -7 -6 ------------- Run | Yrd Mat Min Exi Min Mat Fac Low Low Dat Pro Turns Passed 8349 | 148 1856 311 3282 372 316 750 283 301 347 383 Spaces Moved 4086 | 90 1026 83 1300 154 125 459 270 250 188 141 Core 7 | 5 1 . . . . . . . 1 . Treads 2924 | 85 1025 83 1300 154 125 152 . . . . Legs 1155 | . . . . . . 307 270 250 187 141 Wheels . | . . . . . . . . . . . Hover . | . . . . . . . . . . . Flight . | . . . . . . . . . . . Fastest Speed 50 | 50 160 160 160 240 240 90 90 90 90 105 Average Speed 170 | 153 160 160 222 240 240 122 99 102 123 119 Slowest Speed 900 | 160 200 160 240 240 240 240 150 105 900 120 Overloaded Moves . | . . . . . . . . . . . Propulsion Burnouts . | . . . . . . . . . . . Robots Hopped . | . . . . . . . . . . . Potential Cave-ins . | . . . . . . . . . . . Cave-ins Triggered . | . . . . . . . . . . . Exploration Rate (%) 41 | 4 97 19 91 32 21 8 43 44 78 16 Regions Visited 10 Branch Regions 7 Pre-discovered Areas 27 | . . . 1 . . . . . 26 . Known Exits Taken . | . . . . . . . . . . . Unknown Exits Taken 10 | 1 1 1 1 1 1 1 1 1 1 . Scrap Searched 4 | . . . . 2 . . . 2 . . Spaces Dug 8 | . 8 . . . . . . . . . Terrain Destroyed 159 | . 92 . 21 7 27 2 3 6 . 1 Melee . | . . . . . . . . . . . Projectile 31 | . . . 10 7 2 2 3 6 . 1 AOE 124 | . 92 . 7 . 25 . . . . . Terrain Rammed . | . . . . . . . . . . . Walls Destroyed . | . . . . . . . . . . . Machines Disabled . | . . . . . . . . . . . Actions | -11 -10 -10 -10 -9 -8 -7 -7 -7 -7 -6 --------- Run | Yrd Mat Min Exi Min Mat Fac Low Low Dat Pro Total 5152 | 97 1163 260 1599 157 134 647 281 269 264 281 Wait 506 | . 16 170 172 . . 120 . 5 10 13 Move 4076 | 89 1025 82 1299 153 124 458 269 249 187 141 Hop . | . . . . . . . . . . . Pick Up 94 | 2 15 1 33 1 1 18 3 . 17 3 Fast Attach 33 | 6 8 3 1 . . 7 . 2 4 2 Attach 36 | . 2 . 4 . 4 10 3 1 5 7 Detach 7 | . . . . . 2 3 . . 2 . Swap 38 | . 11 . 7 2 . 12 2 . 3 1 Drop 80 | . 11 3 28 1 . 19 3 . 12 3 Fire 225 | . 73 1 55 . 3 . 1 12 23 57 Melee . | . . . . . . . . . . . Ram . | . . . . . . . . . . . Kick 1 | . . . . . . . . . 1 . Crush 2 | . 2 . . . . . . . . . Escape Stasis . | . . . . . . . . . . . Rewire 54 | . . . . . . . . . . 54 Trap . | . . . . . . . . . . . Miscellaneous . | . . . . . . . . . . . Route ------- -11/Scrapyard -10/Materials (discovered 5 exits: [*Mat x3] / *Min / [*Sub]) -10/Mines -10/Exiles -9/Mines -8/Materials -7/Factory -7/Lower Caves -7/Lower Caves -7/Data Miner -6/Proximity Caves History --------- Turn | Location | Event 50 | -11/Scrapyard | Discovered new exit (range 15) 149 | -11/Scrapyard | Entered Materials 318 | -10/Materials | Build established: Mutant 544 | -10/Materials | Central database locked down 556 | -10/Materials | Repaired Lgt. Treads? 604 | -10/Materials | Repaired Lgt. Treads 641 | -10/Materials | Discovered new exit (range 14) 703 | -10/Materials | Discovered new exit (range 5) 923 | -10/Materials | Discovered new exit (range 12) 1174 | -10/Materials | Discovered new exit (range 3) 1388 | -10/Materials | Discovered new exit (range 12) 2005 | -10/Materials | Entered Mines 2011 | -10/Mines | Found the Drone Emporium 2016 | -10/Mines | Assembled infested the area 2019 | -10/Mines | Found Prototype Device 2019 | -10/Mines | Identified Thief Drone Bay 2021 | -10/Mines | Assisted by a Guerilla fighting off Assembled 2031 | -10/Mines | Met a Derelict bent on vengeance 2260 | -10/Mines | Received a Rocket Launcher from a helpful Derelict 2308 | -10/Mines | Deemed a non-threat by the Exiles lab entrance 2309 | -10/Mines | Discovered new exit (range 5) 2316 | -10/Mines | Entered Exiles 2355 | -10/Exiles | Met 8R-AWN 2382 | -10/Exiles | Met EX-HEX 2479 | -10/Exiles | Met EX-DEC 2623 | -10/Exiles | Learned location of Zion (-6) 2668 | -10/Exiles | Met EX-BIN 2702 | -10/Exiles | Aligned with FarCom system 2704 | -10/Exiles | Given EX-Vault access code 3261 | -10/Exiles | Opened EX-Vault 3303 | -10/Exiles | Warned to stay clear of 0b10 Research branches 3414 | -10/Exiles | Attacked by the Exiles 3531 | -10/Exiles | Discovered new exit (range 22) 3658 | -10/Exiles | Allies destroyed 8R-AWN 3814 | -10/Exiles | Found 8R-AWN's Boregun 3815 | -10/Exiles | Found 8R-AWN's Boregun 3839 | -10/Exiles | Lost 3 allies 4065 | -10/Exiles | Destroyed EX-BIN 4080 | -10/Exiles | Destroyed EX-HEX 4151 | -10/Exiles | Destroyed EX-DEC 4485 | -10/Exiles | Found Prototype Processor 4513 | -10/Exiles | Identified Exp. Core Analyzer 4661 | -10/Exiles | Found Deploy-a-Sentry 5205 | -10/Exiles | Found YOLO Cannon 5213 | -10/Exiles | Found AWS/Thermal 5217 | -10/Exiles | Found Trap Reconfigurator 5598 | -10/Exiles | Stole four prototypes: AWS/Thermal, Trap Reconfigurator, YOLO Cannon, Deploy-a-Sentry 5598 | -10/Exiles | Entered Mines 5795 | -9/Mines | A weapon hastily lodged in a ceiling crevice suddenly fell to the ground 5862 | -9/Mines | Discovered new exit (range 10) 5970 | -9/Mines | Entered Materials 5970 | -8/Materials | Evolved 4 slots: Utility x4 6057 | -8/Materials | Garrison activated, responded to threat 6075 | -8/Materials | Met 7R-MNS 6156 | -8/Materials | Discovered new exit (range 16) 6286 | -8/Materials | Entered Factory 6286 | -7/Factory | Evolved 2 slots: Propulsion x2 6287 | -7/Factory | Caught up to 7R-MNS 6372 | -7/Factory | Build established: Scavenger-Mutant 6535 | -7/Factory | 7R-MNS lamented failing the tripod run 6555 | -7/Factory | Found Prototype Protection 6555 | -7/Factory | Identified Centrium Heavy Armor Plating 6601 | -7/Factory | Found Corrupted Prototype Device 6640 | -7/Factory | Identified Thermal Barrier 6643 | -7/Factory | Found Corrupted Prototype Device 6645 | -7/Factory | Identified Multitargeting Array 6693 | -7/Factory | Found Corrupted Prototype Leg 6698 | -7/Factory | Identified Tripod Weapons Platform 6705 | -7/Factory | System corruption reached 10% 6705 | -7/Factory | Attached Tripod Weapons Platform, gained temporary slots: Weapon x2 6776 | -7/Factory | DAS Turret deployed 6864 | -7/Factory | Discovered new exit (range 13) 6904 | -7/Factory | System corruption reached 30% 6946 | -7/Factory | AWS/Thermal suddenly broke down 6975 | -7/Factory | Found AS-neutralizer No. 17b 7036 | -7/Factory | Entered Lower Caves 7066 | -7/Lower Caves | Encountered a Warlord checkpoint 7086 | -7/Lower Caves | Learned 4 Factory zone layouts 7128 | -7/Lower Caves | AWS/Thermal suddenly broke down 7198 | -7/Lower Caves | Build established: Scavenger-Gunner 7312 | -7/Lower Caves | Discovered new exit (range 6) 7319 | -7/Lower Caves | Entered another Lower Caves area 7544 | -7/Lower Caves | Encountered a Warlord checkpoint 7568 | -7/Lower Caves | Encountered a Master Thief 7569 | -7/Lower Caves | Encountered a Master Thief 7571 | -7/Lower Caves | Encountered a Master Thief 7571 | -7/Lower Caves | AWS/Thermal stolen by Master Thief 7572 | -7/Lower Caves | Encountered a Master Thief 7573 | -7/Lower Caves | YOLO Cannon stolen by Master Thief 7576 | -7/Lower Caves | Trap Reconfigurator stolen by Master Thief 7580 | -7/Lower Caves | Carbon-fiber Leg stolen by Master Thief 7610 | -7/Lower Caves | Discovered new exit (range 12) 7620 | -7/Lower Caves | Entered Data Miner 7621 | -7/Data Miner | Discovered new exit (range 6) 7650 | -7/Data Miner | Met Data Miner 7680 | -7/Data Miner | Learned location of Section 7 (-3) 7680 | -7/Data Miner | Acquired the access code to Warlord's prototype stash 7704 | -7/Data Miner | Received God Mode back door access code from Data Miner 7718 | -7/Data Miner | Interfaced with the Data Conduit 7813 | -7/Data Miner | Lost 4 parts (1p3u) 7837 | -7/Data Miner | Found Exp. Thermal Shield 7967 | -7/Data Miner | Entered Proximity Caves 8087 | -6/Proximity Caves | Build established: Scavenger-Mutant 8096 | -6/Proximity Caves | Snuck into a huge 0b10 base via the rear entrance 8151 | -6/Proximity Caves | Core integrity fell below 50% 8350 | -6/Proximity Caves | Self-destructed Last Messages --------------- 08326_ Slug penetrates Reinforced Barrier. 08326_ Door Terminal disabled. 08326_ Imp 5b destroyed. 08329_ System corrupted: Neutron Cannon failed to cycle. 08330_ Slug penetrates Reinforced Barrier. 08332_ System corrupted: Neutron Cannon failed to cycle. 08334_ Critical hit (Burn: +37). 08335_ System corrupted: Component data lost. 08338_ Destroyed VTOL Module. 08340_ Destroyed Lgt. Nuclear Core. 08342_ S-27 Virus destroyed. 08344_ Slug penetrates Reinforced Barrier. 08344_ Penetrated by Slug. 08344_ Phase Gun destroyed. 08344_ Critical hit (Burn: +37). 08346_ VTOL Module fries itself beyond repair. 08347_ Slug penetrates Reinforced Barrier. 08347_ Penetrated by Slug. 08350_ System corrupted: Matter fused (-9). 08350_ Penetrated by Slug. Map ----- +----------------------------------------------------+ | ???????????????????????????????????????????????? | | ???????????????????????????????????????????????? | | ???????????????????????????????????????????????? | | ???????????????????????????????????????????????? | | ???????????????????????????????????????????????? | | ???????????????????????????????????????????????? | | ???????????????????????????????????????????????? | | ???????????????????????????????????????????????? | | ???????????????????????????????????????????????? | | ?????????????????????#######???????????????????? | | ????????????????????# "???????????????????? | | ????????????????????# "???????????????????? | | ????????????????????# "???????????????????? | | ??????????????????### ""??????????????????? | | ?????????????????? ??????????????????? | | ??????????????????? ???????????????????? | | ???????????????????? ???????????????????? | | ????????????????????? ! "???????????????????? | | ????????????????????? g "???????????????????? | | ?????????????????????? "???????????????????? | | ??????????????????????? *%/????????????????????? | | ???????????????????????#h=##???????????????????? | | ???????????????????????#/%s#???????????????????? | | ???????????????????????#ss#????????????????????? | | ???????????????????????#*%#????????????????????? | | ??????????????##########!@#????????????????????? | | ??????????????# # #????????????????????? | | ??????????????# # #????????????????????? | | ????? ???????# # #????????????????????? | | ????? ???# # #????????????????????? | | ??? ###++##### #????????????????????? | | ??? % #????????????????????? | | ??? % % #????????????????????? | | ??? %####### ##+#####????????????????? | | ???? ???????#%%# #????????????????? | | ???? ????????# # #????????????????? | | ????? ?????????# %# #????????????????? | | ????? ??????????# # #????????????????? | | ??????# ???????????# # #????????????????? | | ??????? ????????????# # #????????????????? | | ????????????????????# # #????????????????? | | ????????????????????# ########????????????????? | | ????????????????????# #???????????????????????? | | ????????????????????# #???????????????????????? | | ????????????????????# %#???????????????????????? | | ??????????????????### ###?????????????????????? | | ??????????????????#% #?????????????????????? | | ??????????????????### ###?????????????????????? | | ????????????????????# #???????????????????????? | | ????????????????????# #???????????????????????? | +----------------------------------------------------+ Best States ------------- Heat Dissipation 72 Energy Generation 21 Energy Capacity 325 Matter Stores 300 Matter Capacity 300 Sight Range 16 Terrain Scan Density 10 Jamming Range 16 Corruption Containment 12 Armor Coverage 600 Resistance: TH 50 Propulsion Shielding 90 Weapon Shielding 33 Weapon Cycling 25 Evasion (%) 57 Targeting Accuracy 24 Core Analysis 8 Recoil Reduction 4 Particle Charging 25 Item Schematics ----------------- Combat Drone Bay | -7/Data Miner | Free Lgt. Regenerative Plating | -7/Data Miner | Free Cld. Aerolev Unit | -7/Data Miner | Free Gravity Neutralizer | -7/Data Miner | Free Field Propulsion Drive | -7/Data Miner | Free Imp. Transmission Jammer | -7/Data Miner | Free Plasma Rifle | -7/Data Miner | Free Hyp. Gauss Cannon | -7/Data Miner | Free Adv. Hacking Suite | -7/Data Miner | Free Adv. Power Amplifier | -7/Data Miner | Free Imp. Lightning Gun | -7/Data Miner | Free Robot Schematics ------------------ A-15 Conveyor | -7/Data Miner | Free I-36 Angel | -7/Data Miner | Free B-48 Gladiator | -7/Data Miner | Free S-27 Virus | -7/Data Miner | Free R-10 Processor | -7/Data Miner | Free Y-54 Guardian | -7/Data Miner | Free Fabricated ------------ Nothing Repaired ---------- Lgt. Treads | 82% | -10/Materials Lgt. Treads | 82% | -10/Materials Studied --------- None Alien Tech Used ----------------- None Achievements -------------- None Challenges ------------ None Game ------ Seed SuperchargedStrikeRipper Manual? 0 Play Time 01:19:41 Cumulative 312.7 hours Start 2025.11.20 @ 19:12:14 End 2025.11.20 @ 20:41:03 Sessions 1 Manual Loads 0 Difficulty Rogue Special Mode None Game No. 325 Rogue 321 Adventurer 3 Explorer 1 Win Type - Total 2 Types 2/0/0/0/0/0/0/0/0/0 Lore% 80 Gallery% 77 Achievement% 63 Wizard Run 0 Options --------- Layout 0 ASCII 0 Keyboard 0 Movement Mouse Keybinds 0 Fullscreen 2 Font 18/SmallcapsGlow Map View 76x50 Zoom Use 0% Tactical HUD 1 Map Filters NONE Filters NONE Steam 1 RUN: 83ff6088-2991-4fd8-bdf0-b9a71dbdd3bf